{"text_format":"1","workbook":"xlsx","n_sheets":6,"sheets":["All Workbook","Active Sheet","Sheet 3","Range","Cell","Selection"],"not_rendered":{"charts":0,"images":0,"macros":1,"external_links":0,"defined_names":0,"comments":0,"pivot_tables":0},"unopened":[],"bounds":{"document_bytes":16777216,"sheet_cells":100000,"rows_first":2000,"rows_last":500,"rows_between":2000,"halvings":0,"cell_chars":16384,"cell_head_chars":4096},"cells_cut":0,"cells_raw":0,"read":"whole","date_system":"1900"}

{"sheet":"All Workbook","index":0,"n_rows":9,"n_cols":5,"rows_kept":9,"cut":false,"hidden":false,"merged":[[1,1,1,4]]}
[]
[null,"Calculate All Open Workbooks"]
[]
[null,"Product","Quantity","Unit Price","Total Price"]
[null,"Laptop",15,700,{"$f":"C5*D5","v":10500}]
[null,"Keyboard",134,25,{"$f":"C6*D6","v":3350}]
[null,"Mouse",288,15,4320]
[null,"Headset",90,35,3150]
[null,"Printer",54,100,5400]

{"sheet":"Active Sheet","index":1,"n_rows":9,"n_cols":5,"rows_kept":9,"cut":false,"hidden":false,"merged":[[1,1,1,4]]}
[]
[null,"Calculate Active WorkSheet"]
[]
[null,"Product","Quantity","Unit Price","Total Price"]
[null,"Laptop",12,700,{"$f":"C5*D5","v":8400}]
[null,"Keyboard",114,25,{"$f":"C6*D6","v":2850}]
[null,"Mouse",254,15,3810]
[null,"Headset",56,35,1960]
[null,"Printer",67,100,6700]

{"sheet":"Sheet 3","index":2,"n_rows":9,"n_cols":5,"rows_kept":9,"cut":false,"hidden":false,"merged":[[1,1,1,4]]}
[]
[null,"Calculate Specific Worksheet"]
[]
[null,"Product","Quantity","Unit Price","Total Price"]
[null,"Laptop",14,700,{"$f":"C5*D5","v":9800}]
[null,"Keyboard",184,25,{"$f":"C6*D6","v":4600}]
[null,"Mouse",274,15,4110]
[null,"Headset",112,35,3920]
[null,"Printer",57,100,5700]

{"sheet":"Range","index":3,"n_rows":9,"n_cols":5,"rows_kept":9,"cut":false,"hidden":false,"merged":[[1,1,1,4]]}
[]
[null,"Calculate a Range Using VBA"]
[]
[null,"Product","Quantity","Unit Price","Total Price"]
[null,"Laptop",9,700,{"$f":"C5*D5","v":6300}]
[null,"Keyboard",284,25,{"$f":"C6*D6","v":7100}]
[null,"Mouse",274,15,4110]
[null,"Headset",122,35,4270]
[null,"Printer",54,100,5400]

{"sheet":"Cell","index":4,"n_rows":9,"n_cols":5,"rows_kept":9,"cut":false,"hidden":false,"merged":[[1,1,1,4]]}
[]
[null,"Calculate a Single Cell"]
[]
[null,"Product","Quantity","Unit Price","Total Price"]
[null,"Laptop",12,700,{"$f":"C5*D5","v":8400}]
[null,"Keyboard",254,25,{"$f":"C6*D6","v":6350}]
[null,"Mouse",264,15,3960]
[null,"Headset",102,35,3570]
[null,"Printer",74,100,7400]

{"sheet":"Selection","index":5,"n_rows":9,"n_cols":5,"rows_kept":9,"cut":false,"hidden":false,"merged":[[1,1,1,4]]}
[]
[null,"Force Calculate Selected Cells"]
[]
[null,"Product","Quantity","Unit Price","Total Price"]
[null,"Laptop",13,700,{"$f":"C5*D5","v":9100}]
[null,"Keyboard",255,25,{"$f":"C6*D6","v":6375}]
[null,"Mouse",256,15,3840]
[null,"Headset",154,35,5390]
[null,"Printer",67,100,6700]